bitfinex/quotes_SOLUSD_20240716
["timestamp","ask_amount","ask_price","bid_price","bid_amount"]
[1721135365372,15.4278,157.0,156.93,17.20457803]
[1721135365658,6.3711,156.96,156.93,1.27427803]
[1721135366375,6.3707,156.97,156.92,51.7124]
[1721135366532,6.3707,156.97,156.93,0.17]
[1721135367740,6.3707,156.97,156.93,6.5422]
[1721135367940,6.3707,156.97,156.94,45.17]
[1721135368256,6.3701,156.99,156.94,62.37326134]
[1721135368434,0.8419054,157.02,156.95,0.17]
[1721135368435,6.3702,156.98,156.95,0.17]
[1721135368649,6.3702,156.98,156.95,1.44401105]
[1721135368841,6.3707,156.97,156.95,0.17]
[1721135369039,0.8419054,157.02,156.95,0.17]
[1721135369244,6.371,156.96,156.95,0.17]
[1721135369456,6.371,156.96,156.94,45.17]
[1721135369656,6.3714,156.95,156.93,0.17]
[1721135369951,6.3715,156.95,156.91,6.373]
[1721135370249,6.3726,156.93,156.9,6.3158]
[1721135370628,15.9292,156.95,156.86,12.6099]
[1721135370840,6.3731,156.91,156.86,12.6099]
[1721135371045,6.3731,156.91,156.87,6.3745]
[1721135371246,6.3731,156.91,156.86,12.6098]
[1721135371557,6.3728,156.92,156.87,6.3745]
[1721135372645,20.0,156.97,156.89,6.3738]
[1721135372646,6.3722,156.93,156.89,6.3738]
[1721135372937,10.0,156.97,156.87,22.3106]
[1721135372938,6.3732,156.91,156.87,22.3106]
[1721135373148,6.3732,156.91,156.88,1.44460153]
[1721135373341,15.928,156.96,156.88,0.17]
[1721135373552,15.928,156.96,156.88,0.34]
[1721135373863,15.928,156.96,156.88,0.17]
[1721135374355,6.3727,156.92,156.88,0.17]
[1721135374554,25.9252,156.99,156.9,6.3733]
[1721135374852,6.372,156.94,156.91,0.17]
[1721135375049,6.3718,156.94,156.91,1.44437387]
[1721135375350,6.3721,156.94,156.91,0.17]
[1721135375557,6.3715,156.95,156.91,7.81724758]
[1721135376066,15.9252,156.99,156.92,6.3726]
[1721135376067,6.3711,156.96,156.92,6.3726]
[1721135376255,6.3711,156.96,156.93,1.27416884]
[1721135376559,6.3706,156.97,156.94,0.17]
[1721135376738,6.3706,156.97,156.94,1.44413007]
[1721135377653,6.371,156.96,156.94,0.17]
[1721135378759,6.3714,156.95,156.94,0.17]
[1721135380274,6.3722,156.94,156.92,15.7172]
[1721135380635,6.3719,156.94,156.92,15.7172]
[1721135380866,15.9259,156.98,156.89,6.5812]
[1721135381164,6.3715,156.95,156.91,6.373]
[1721135381456,6.3711,156.96,156.92,7.64688199]
[1721135381657,6.3707,156.97,156.93,7.64638556]
[1721135381843,6.3707,156.97,156.94,0.17]
[1721135382237,6.37,156.99,156.95,6.3713]
[1721135382437,6.3702,156.98,156.96,1.44395817]
[1721135382646,6.3699,156.99,156.96,1.44395817]
[1721135383439,6.3699,156.99,156.96,46.44395817]
[1721135384457,6.3703,156.98,156.96,46.44395817]
[1721135384662,6.3706,156.97,156.96,45.17]
[1721135384962,6.3706,156.97,156.96,0.17]
[1721135385166,6.371,156.96,156.94,0.17]
[1721135385379,6.371,156.96,156.91,75.8766]
[1721135385665,15.9248,156.99,156.91,22.3218]
[1721135385666,6.3719,156.94,156.91,22.3218]
[1721135385958,15.9248,156.99,156.91,22.3218]
[1721135386266,55.1939054,157.02,156.92,15.9314]
[1721135386447,6.3708,156.97,156.92,22.3038]
[1721135386645,6.3708,156.97,156.93,0.17]
[1721135386954,6.3708,156.97,156.93,51.7121]
[1721135387468,6.3714,156.95,156.93,0.34]
[1721135387651,6.3718,156.94,156.92,0.34]
[1721135387964,6.3723,156.93,156.91,23.59611287]
[1721135388169,6.3721,156.94,156.91,23.59611287]
[1721135388468,15.9258,156.98,156.91,22.3218]
[1721135388763,6.3723,156.93,156.92,1.27432686]
[1721135388963,6.3719,156.94,156.92,1.27432686]
[1721135389750,6.3716,156.95,156.92,1.27432686]
[1721135389952,6.3716,156.95,156.93,1.27432687]
[1721135390159,6.371,156.96,156.93,1.27432687]
[1721135390359,6.371,156.96,156.92,6.5425]
[1721135390543,6.371,156.96,156.93,0.17]
[1721135392448,6.3714,156.95,156.93,0.17]
[1721135392643,42.6855054,157.02,156.92,45.34]
[1721135392860,6.3713,156.96,156.92,51.7123]
[1721135393059,6.3707,156.97,156.93,6.3722]
[1721135393772,6.3711,156.96,156.92,51.7125]
[1721135394472,6.3714,156.95,156.92,45.34]
[1721135394649,6.3719,156.94,156.92,45.34]
[1721135394844,15.9263,156.98,156.91,6.5193]
[1721135395050,6.3736,156.9,156.88,15.23]
[1721135395364,6.3732,156.91,156.88,15.23]
[1721135395764,15.9283,156.96,156.87,6.494]
[1721135396351,15.9301,156.94,156.87,6.494]
[1721135397455,6.3739,156.89,156.87,6.494]
[1721135397857,6.3739,156.89,156.85,22.3132]
[1721135398057,6.3739,156.89,156.84,47.77208137]
[1721135398058,6.3744,156.88,156.84,54.14788137]
[1721135398257,6.3739,156.89,156.85,6.3753]
[1721135398458,6.3736,156.9,156.85,6.3753]
[1721135398672,6.3739,156.89,156.85,6.3753]
[1721135400376,6.3739,156.89,156.84,70.42728137]
[1721135400577,6.3743,156.88,156.85,0.17]
[1721135401077,6.374,156.89,156.85,6.5454]
[1721135401662,6.3743,156.88,156.85,0.17]
[1721135401858,6.3733,156.91,156.87,6.3746]
[1721135402081,6.3727,156.92,156.88,1.27478826]
[1721135402275,15.9292,156.95,156.88,1.27478826]
[1721135402276,6.3731,156.91,156.88,1.27478826]
[1721135402580,6.3736,156.9,156.85,6.7152]
[1721135402779,6.3732,156.91,156.87,6.3745]
[1721135402960,6.3726,156.92,156.88,1.4446002]
[1721135403278,6.3723,156.93,156.88,1.4446002]
[1721135403459,6.3726,156.92,156.89,0.17]
[1721135403655,6.3731,156.91,156.89,0.17]
[1721135403859,6.3731,156.91,156.88,45.17]
[1721135404079,6.3724,156.93,156.89,7.64835728]
[1721135404260,6.3724,156.93,156.89,6.3738]
[1721135404455,15.9281,156.96,156.9,0.17]
[1721135404879,6.3737,156.9,156.86,6.3749]
[1721135405059,6.3731,156.91,156.87,0.17]
[1721135405261,6.3731,156.91,156.87,51.7145]
[1721135405955,6.3738,156.9,156.87,0.34]
[1721135406155,15.9301,156.94,156.87,0.17]
[1721135406356,15.9301,156.94,156.87,0.34]
[1721135406561,6.3735,156.9,156.87,0.34]
[1721135406874,6.3744,156.88,156.84,47.77208137]
[1721135407082,6.3744,156.88,156.85,0.34]
[1721135407396,15.9321,156.92,156.84,47.77208137]
[1721135407563,6.3754,156.86,156.84,47.77208137]
[1721135407763,6.3754,156.86,156.84,31.54338137]
[1721135408188,6.3748,156.87,156.84,31.54338137]
[1721135408559,15.9368,156.87,156.81,31.24535207]
[1721135408991,6.376,156.84,156.81,31.24535207]
[1721135409280,6.3742,156.89,156.84,6.3758]
[1721135409496,6.3735,156.9,156.85,6.3753]
[1721135409663,22.0073,156.94,156.85,6.3753]
[1721135409966,6.3739,156.89,156.84,22.655]
[1721135410171,6.3739,156.89,156.85,45.34]
[1721135410488,6.3743,156.88,156.85,45.34]
[1721135410967,15.9324,156.92,156.82,6.3764]
[1721135411166,6.3746,156.88,156.81,35.1025]
[1721135411364,10.0,156.91,156.82,6.3764]
[1721135411864,6.3748,156.87,156.83,6.3761]
[1721135412079,20.0,156.93,156.85,6.3751]
[1721135412080,6.3735,156.9,156.85,6.3751]
[1721135412266,6.3735,156.9,156.86,0.6269583]
[1721135412471,6.3735,156.9,156.86,1.27477084]
[1721135412884,6.3736,156.9,156.86,1.27477084]
[1721135413084,42.1587,156.95,156.86,1.27477084]
[1721135413085,6.373,156.91,156.87,0.34]
[1721135413385,6.3731,156.91,156.88,15.9357]
[1721135413566,6.3731,156.91,156.89,1.27441822]
[1721135413887,6.3725,156.93,156.89,1.27441822]
[1721135414089,6.3717,156.95,156.9,7.98744656]
[1721135414405,6.3717,156.95,156.91,45.0]
[1721135414686,6.3717,156.95,156.92,0.34]
[1721135415057,15.9248,156.99,156.92,6.7126]
[1721135415288,15.9248,156.99,156.93,45.0]
[1721135415460,6.3705,156.98,156.94,0.34]
[1721135415781,6.3693,157.01,156.96,6.3706]
[1721135415969,6.3693,157.01,156.97,46.61380345]
[1721135416163,0.8419054,157.02,156.97,1.27380345]
[1721135416377,6.3699,156.99,156.95,1.27399518]
[1721135416576,6.3694,157.0,156.96,1.44399225]
[1721135416767,6.3694,157.0,156.97,0.17]
[1721135416968,6.3699,156.99,156.97,1.4438664]
[1721135417287,0.8419054,157.02,156.97,0.17]
[1721135417288,6.3702,156.98,156.97,0.17]
[1721135417692,6.371,156.96,156.93,6.3721]
[1721135417894,6.371,156.96,156.94,45.34]
[1721135418108,6.3707,156.97,156.94,45.34]
[1721135418390,6.3712,156.96,156.94,0.34]
[1721135418564,6.3711,156.96,156.94,0.17]
[1721135418769,6.3715,156.95,156.91,22.3052]
[1721135418974,6.3718,156.95,156.9,6.3734]
[1721135419187,6.3718,156.95,156.91,6.3729]
[1721135419497,6.3718,156.95,156.91,7.64717898]
[1721135419793,6.371,156.96,156.91,7.64717898]
[1721135419988,6.3715,156.95,156.91,6.3729]
[1721135420169,6.3715,156.95,156.9,22.4762]
[1721135420369,6.3711,156.96,156.91,6.5429]
[1721135420569,15.9237,157.0,156.92,7.64687804]
[1721135420789,15.9237,157.0,156.93,1.27424924]
[1721135420969,15.9237,157.0,156.93,6.3719]
[1721135421164,6.371,156.96,156.94,0.17]
[1721135421499,6.3714,156.95,156.93,46.61413736]
[1721135421711,6.371,156.97,156.93,45.34]
[1721135421867,6.371,156.97,156.93,51.7122]
[1721135422369,6.371,156.97,156.94,1.27412007]
[1721135422671,6.3703,156.98,156.95,0.17]
[1721135422867,6.3698,156.99,156.94,6.3714]
[1721135423177,6.3705,156.98,156.95,0.17]
[1721135423377,0.8419054,157.02,156.95,0.17]
[1721135423378,6.3707,156.97,156.95,0.17]
[1721135423571,6.371,156.96,156.95,0.17]
[1721135423766,16.6621,156.98,156.92,1.27408841]
[1721135423971,6.3717,156.95,156.91,1.27427608]
[1721135424895,6.3719,156.94,156.91,1.27427608]
[1721135425390,6.3715,156.95,156.92,0.17]
[1721135425585,6.3715,156.95,156.92,0.34]
[1721135425785,6.3722,156.93,156.92,0.34]
[1721135425978,6.3722,156.93,156.92,0.17]
[1721135426191,6.3722,156.93,156.89,13.0372]
[1721135426192,6.3731,156.91,156.89,6.6637]
[1721135426368,6.3731,156.91,156.88,15.2728]
[1721135426369,6.3734,156.9,156.88,16.54732387]
[1721135426994,15.9325,156.92,156.86,1.2746262]
[1721135427372,6.3742,156.89,156.86,1.2746262]
[1721135427780,6.3747,156.87,156.83,15.9403]
[1721135427980,6.3751,156.86,156.83,15.9403]
[1721135428188,6.3747,156.87,156.83,6.3763]
[1721135428383,6.3747,156.87,156.8,38.8216]
[1721135428573,6.3747,156.87,156.82,6.3766]
[1721135428773,6.3747,156.87,156.83,6.3763]
[1721135428995,6.3744,156.88,156.83,6.3763]
[1721135429373,6.3747,156.87,156.84,45.34]
[1721135429572,6.3751,156.86,156.82,22.318]
[1721135430179,6.3747,156.87,156.83,7.65116788]
[1721135430696,6.3743,156.88,156.83,7.65116788]
[1721135430881,6.3743,156.88,156.84,0.34]
[1721135431082,6.3743,156.88,156.84,1.61488227]
[1721135431585,6.3743,156.88,156.84,7.99068227]
[1721135431801,6.374,156.89,156.85,45.0]
[1721135431970,15.9312,156.93,156.86,7.81977457]
[1721135432168,6.374,156.89,156.87,0.17]
[1721135432380,6.3737,156.9,156.87,0.17]
[1721135432583,6.3737,156.9,156.87,1.44469304]
[1721135432888,6.3739,156.89,156.87,1.44469304]
[1721135433986,6.374,156.89,156.87,1.44469304]
[1721135435007,15.9312,156.93,156.87,1.44469304]
[1721135435008,6.3736,156.9,156.87,1.44469304]
[1721135435495,6.3742,156.89,156.87,1.44469304]
[1721135435798,6.3742,156.89,156.87,0.17]
[1721135436002,6.3742,156.89,156.86,1.4447109]
[1721135436596,6.3733,156.91,156.87,0.17]
[1721135436804,6.3733,156.91,156.87,51.5445]
[1721135436998,6.3733,156.91,156.88,1.44458167]
[1721135437406,6.3733,156.91,156.88,0.17]
[1721135437697,6.3736,156.9,156.88,0.17]
[1721135438002,6.3738,156.89,156.88,1.44463459]
[1721135438506,6.3738,156.89,156.88,0.17]
[1721135438692,6.3742,156.88,156.84,7.65053578]
[1721135438895,6.3742,156.88,156.85,45.34]
[1721135439086,6.3742,156.88,156.86,1.2747537]
[1721135439994,6.3747,156.87,156.85,45.34]
[1721135440201,6.3747,156.87,156.85,0.34]
[1721135440616,6.3743,156.88,156.85,0.17]
[1721135440790,6.3743,156.88,156.84,6.3759]
[1721135441192,6.3749,156.87,156.83,16.1103]
[1721135441397,6.3749,156.87,156.84,0.17]
[1721135442094,6.3743,156.88,156.84,6.5458]
[1721135442485,6.3748,156.87,156.85,0.17]
[1721135442685,6.3748,156.87,156.84,45.34]
[1721135443924,6.3748,156.87,156.84,0.34]
[1721135444221,6.3748,156.87,156.74,46.8987]
[1721135444222,6.3751,156.86,156.82,6.3767]
[1721135444588,6.3751,156.86,156.83,1.27503573]
[1721135444790,6.3748,156.87,156.83,6.3762]
[1721135445289,6.3744,156.88,156.84,0.17]
[1721135445519,6.3744,156.88,156.84,6.3759]
[1721135446200,6.3744,156.88,156.85,1.2748726]
[1721135447021,6.3749,156.87,156.83,45.34]
[1721135447203,6.3749,156.87,156.84,1.27494694]
[1721135447796,6.3743,156.88,156.85,1.6149307]
[1721135448015,6.3747,156.87,156.85,0.17]
[1721135448323,6.3752,156.86,156.82,15.9415]
[1721135448526,6.3752,156.86,156.83,1.61499224]
[1721135448688,6.3752,156.86,156.83,0.17]
[1721135448889,6.3748,156.87,156.84,1.27502492]
[1721135449325,6.3752,156.86,156.83,0.17]
[1721135449512,6.3752,156.86,156.83,1.61498011]
[1721135449697,6.3752,156.86,156.83,1.44498011]
[1721135451289,6.3747,156.87,156.83,7.82118011]
[1721135451485,6.3742,156.89,156.83,1.44498011]
[1721135451685,31.8613,156.94,156.84,16.1095]
[1721135451686,41.8613,156.94,156.84,16.1095]
[1721135451919,6.3748,156.87,156.84,1.27494809]
[1721135452314,6.3751,156.86,156.83,45.17]
[1721135452496,6.3751,156.86,156.83,0.17]
[1721135452694,6.3755,156.85,156.83,0.17]
[1721135452914,6.3755,156.85,156.82,45.34]
[1721135453114,15.9342,156.9,156.8,22.8782]
[1721135453115,10.0,156.89,156.8,22.8782]
[1721135453426,6.3764,156.83,156.8,22.8782]
[1721135454332,15.9381,156.86,156.78,15.9451]
[1721135454831,6.376,156.84,156.8,6.3774]
[1721135455996,6.376,156.84,156.79,0.34]
[1721135455997,15.938,156.86,156.79,6.3778]
[1721135456314,6.3766,156.83,156.78,22.3233]
[1721135457109,6.3766,156.83,156.79,6.3779]
[1721135457703,6.3766,156.83,156.78,22.3233]
[1721135457914,15.938,156.86,156.77,0.34]
[1721135458109,6.3766,156.83,156.78,51.718]
[1721135458311,6.3759,156.84,156.78,45.34]
[1721135458627,6.3763,156.83,156.79,6.3778]
[1721135458804,52.595,156.89,156.79,6.3778]
[1721135459805,6.3767,156.82,156.78,51.7183]
[1721135460107,6.3763,156.83,156.78,51.7183]
[1721135460305,6.3763,156.83,156.79,6.3779]
[1721135461015,10.0,156.86,156.77,15.9464]
[1721135461219,15.9392,156.85,156.76,6.4218]
[1721135461411,6.3782,156.79,156.76,6.4218]
[1721135461796,15.9413,156.83,156.72,6.2492]
[1721135461797,6.3795,156.76,156.72,6.2492]
[1721135462017,6.3784,156.78,156.72,6.2492]
[1721135462701,6.3784,156.78,156.73,6.3803]
[1721135462901,6.3785,156.78,156.74,6.3799]
[1721135463097,6.378,156.79,156.74,6.3799]
[1721135463541,6.3783,156.78,156.74,6.3799]
[1721135464317,6.3783,156.78,156.73,6.5503]
[1721135465130,6.378,156.79,156.74,6.3799]
[1721135465428,10.0,156.8,156.72,6.2492]
[1721135465599,10.0,156.8,156.71,16.3871]
[1721135466005,6.3803,156.74,156.71,16.3871]
[1721135466230,6.3796,156.75,156.71,22.7682]
[1721135466525,6.3796,156.75,156.72,1.27592858]
[1721135466834,6.3796,156.75,156.71,22.7682]
[1721135467323,6.3796,156.75,156.71,16.3871]
[1721135467704,6.38,156.74,156.71,17.66306921]
[1721135468826,15.9463,156.78,156.7,0.34]
[1721135468827,6.3808,156.72,156.7,0.34]
[1721135469028,6.3808,156.72,156.69,45.34]
[1721135469211,15.9484,156.76,156.68,6.544]
[1721135469421,6.3816,156.7,156.68,6.544]
[1721135470305,6.382,156.69,156.67,16.1626]
[1721135470504,6.3816,156.7,156.67,16.1626]
[1721135471710,6.3825,156.68,156.66,0.17]
[1721135471918,6.3817,156.7,156.65,6.7235]
[1721135472127,6.3817,156.7,156.66,46.27636087]
[1721135472316,6.3817,156.7,156.65,45.17]
[1721135472712,6.3827,156.68,156.65,45.17]
[1721135473045,15.9517,156.73,156.66,1.27641846]
[1721135473243,6.3826,156.68,156.66,1.27641846]
[1721135473422,15.9517,156.73,156.65,51.7234]
[1721135473623,6.3816,156.7,156.66,0.17]
[1721135473814,26.6,156.75,156.66,0.17]
[1721135473815,16.6,156.75,156.66,0.17]
[1721135474317,16.6,156.75,156.66,6.5532]
[1721135474522,16.6,156.75,156.67,0.17]
[1721135474715,16.6,156.75,156.67,45.17]
[1721135474920,15.9511,156.73,156.67,0.17]
[1721135475125,15.9511,156.73,156.66,0.17]
[1721135475321,15.9511,156.73,156.65,45.34]
[1721135475516,6.3837,156.65,156.6,13.0328]
[1721135475714,6.3842,156.64,156.6,6.6472]
[1721135475914,6.3856,156.6,156.56,22.2445]
[1721135476139,6.3851,156.62,156.57,1.2771247]
[1721135476438,6.3845,156.63,156.59,6.386]
[1721135476625,6.3836,156.65,156.6,7.66208597]
[1721135476944,6.3835,156.66,156.61,7.66155903]
[1721135477137,6.3836,156.65,156.61,7.66155903]
[1721135477319,6.3836,156.65,156.61,7.66195903]
[1721135477529,6.3836,156.65,156.61,1.27675903]
[1721135478240,6.3836,156.65,156.61,46.27675903]
[1721135478532,25.9546,156.7,156.62,0.17]
[1721135478732,15.9566,156.68,156.62,0.17]
[1721135478935,6.3844,156.63,156.62,0.17]
[1721135479141,6.3859,156.6,156.56,22.2448]
[1721135479443,25.9594,156.65,156.56,22.2448]
[1721135479613,6.3856,156.61,156.56,23.52194597]
[1721135479808,25.9594,156.65,156.56,23.52194597]
[1721135479809,25.9594,156.65,156.56,29.90914597]
[1721135480038,6.3852,156.62,156.57,6.3868]
[1721135480340,6.3847,156.63,156.58,7.66312054]
[1721135480714,15.9587,156.66,156.58,1.27692054]
[1721135480915,6.3857,156.6,156.56,28.632]
[1721135481210,6.3857,156.6,156.57,45.17]
[1721135481415,6.3861,156.59,156.56,6.4466]
[1721135481856,6.3866,156.58,156.56,6.2766]
[1721135482319,15.9607,156.64,156.56,7.37652684]
[1721135482521,6.3852,156.62,156.57,6.3868]
[1721135482740,6.3836,156.65,156.56,6.2766]
[1721135482928,6.3836,156.65,156.58,1.27691694]
[1721135483123,18.75513471,156.66,156.59,15.9645]
[1721135483447,6.3847,156.63,156.59,15.9645]
[1721135483649,6.3849,156.62,156.58,0.34]
[1721135483829,6.3853,156.61,156.59,0.17]
[1721135484223,6.3849,156.62,156.58,45.17]
[1721135484432,6.3854,156.61,156.58,45.17]
[1721135484644,6.3849,156.62,156.58,0.17]
[1721135484862,6.3841,156.64,156.59,6.386]
[1721135485136,6.3845,156.63,156.6,1.27689644]
[1721135485347,6.3845,156.63,156.58,22.6921]
[1721135485348,6.3853,156.61,156.58,0.34]
[1721135485917,6.3844,156.64,156.59,6.386]
[1721135486319,6.3844,156.63,156.59,6.386]
[1721135486538,12.37183471,156.66,156.6,1.27691647]
[1721135486821,6.3843,156.64,156.6,1.27691647]
[1721135487021,6.3843,156.64,156.61,0.17]
[1721135487430,12.37183471,156.66,156.61,0.17]
[1721135487628,18.75513471,156.66,156.61,7.66190029]
[1721135487831,18.75513471,156.66,156.62,0.17]
[1721135488028,6.3836,156.65,156.62,0.17]
[1721135488224,6.3844,156.63,156.61,1.27680029]
[1721135488444,12.37183471,156.66,156.6,0.17]
[1721135488650,28.33033471,156.66,156.56,6.2766]
[1721135488844,28.33033471,156.66,156.57,0.17]
[1721135489140,6.3845,156.63,156.57,16.1365]
[1721135489343,12.37183471,156.66,156.59,6.3857]
[1721135489529,6.3836,156.65,156.61,6.3852]
[1721135489732,6.3836,156.65,156.6,6.5555]
[1721135489933,18.75513471,156.66,156.61,51.5551]
[1721135490132,12.37183471,156.66,156.62,1.27670237]
[1721135490331,12.37183471,156.66,156.61,51.5551]
[1721135490534,6.3837,156.65,156.61,45.17]
[1721135490733,18.75513471,156.66,156.62,0.17]
[1721135490928,6.3837,156.65,156.62,0.17]
[1721135491453,6.384,156.64,156.62,0.17]
[1721135491643,6.3845,156.63,156.61,45.17]
[1721135491832,6.3841,156.64,156.61,45.17]
[1721135492148,6.3837,156.65,156.62,1.44676361]
[1721135492340,6.3837,156.65,156.62,1.27676361]
[1721135492542,6.3841,156.64,156.61,0.17]
[1721135492724,6.3851,156.62,156.58,15.9659]
[1721135492932,6.3841,156.64,156.59,45.34]
[1721135493134,6.3837,156.65,156.6,1.23916601]
[1721135493455,18.75513471,156.66,156.61,8.00191789]
[1721135493649,18.75513471,156.66,156.62,45.0]
[1721135493857,6.3839,156.65,156.62,45.0]
[1721135494063,12.37183471,156.66,156.57,47.2371]
[1721135494268,12.37183471,156.66,156.58,6.3864]
[1721135494557,6.3861,156.59,156.54,47.91]
[1721135494769,6.3857,156.6,156.54,47.91]
[1721135495268,15.9607,156.64,156.54,67.07]
[1721135495557,15.9607,156.64,156.56,28.6318]
[1721135495558,6.3856,156.61,156.56,28.6318]
[1721135495757,6.3861,156.59,156.56,6.2766]
[1721135496245,6.3849,156.62,156.57,7.66378303]
[1721135496443,6.3848,156.63,156.58,7.66324052]
[1721135496643,6.384,156.65,156.59,6.386]
[1721135496849,6.384,156.65,156.6,1.44680549]
[1721135496850,6.3837,156.65,156.6,1.44680549]
[1721135497032,15.9569,156.68,156.6,45.34]
[1721135497232,6.3849,156.62,156.59,15.9643]
[1721135497535,6.3841,156.64,156.6,6.3855]
[1721135498331,6.3841,156.64,156.61,1.27684099]
[1721135498532,15.9569,156.68,156.61,7.66184099]
[1721135498731,6.3846,156.63,156.59,15.9643]
[1721135498944,6.3846,156.63,156.6,0.17]
[1721135499140,6.3849,156.62,156.6,0.34]
[1721135499344,6.385,156.62,156.58,0.17]
[1721135499538,6.3856,156.61,156.58,0.17]
[1721135499738,6.3856,156.61,156.57,45.17]
[1721135500055,6.3853,156.61,156.57,45.17]
[1721135500433,15.9587,156.66,156.57,45.17]
[1721135500632,6.3851,156.62,156.57,51.5567]
[1721135500851,6.3851,156.62,156.58,6.5564]
[1721135501053,12.28683913,156.67,156.6,6.3852]
[1721135501239,6.3842,156.64,156.6,6.3852]
[1721135501634,12.28683913,156.67,156.59,6.386]
[1721135501835,6.3837,156.65,156.6,6.5556]
[1721135502053,6.3833,156.66,156.61,46.44677005]
[1721135502560,6.3833,156.66,156.62,0.17]
[1721135502963,6.3837,156.65,156.62,0.17]
[1721135504151,6.3833,156.66,156.62,6.5548]
[1721135504360,18.66973913,156.67,156.62,6.5548]
[1721135504544,6.3833,156.66,156.62,6.5548]
[1721135504743,6.3833,156.66,156.62,0.17]
[1721135505054,6.3836,156.65,156.62,0.17]
[1721135505642,6.3832,156.66,156.62,6.5548]
[1721135506055,6.3836,156.65,156.62,0.17]
[1721135506568,6.384,156.64,156.62,0.17]
[1721135506778,12.28683913,156.67,156.61,45.17]
[1721135506779,28.24473913,156.67,156.61,0.17]
[1721135506935,6.3841,156.64,156.59,6.3858]
[1721135507136,6.3841,156.64,156.6,7.66234101]
[1721135507541,6.3845,156.63,156.59,15.9648]
[1721135507733,28.24473913,156.67,156.59,15.9648]
[1721135508251,15.9598,156.65,156.56,28.6316]
[1721135508464,15.9598,156.65,156.57,1.2770817]
[1721135508764,15.9598,156.65,156.56,22.2446]
[1721135509155,6.385,156.62,156.58,6.3862]
[1721135509469,6.3841,156.64,156.59,52.8327085]
[1721135509847,6.3835,156.66,156.61,6.3851]
[1721135510051,6.3835,156.66,156.62,46.61667004]
[1721135510254,6.3835,156.66,156.62,0.34]
[1721135510460,6.3838,156.65,156.62,0.34]
[1721135510754,6.3838,156.65,156.62,0.17]
[1721135510961,6.3833,156.66,156.62,6.5547]
[1721135511649,12.28683913,156.67,156.63,27.09534633]
[1721135511854,16.3516,156.75,156.64,45.34]
[1721135511855,6.3815,156.71,156.64,45.34]
[1721135512169,28.54659118,156.75,156.68,6.3823]
[1721135512170,6.3806,156.73,156.68,6.3823]
[1721135512338,6.3806,156.73,156.69,1.27614086]
[1721135512538,6.3816,156.7,156.67,16.2967]
[1721135512740,28.14409118,156.75,156.68,1.27625675]
[1721135512935,6.3819,156.7,156.66,7.65940984]
[1721135513163,28.14409118,156.75,156.67,51.7227]
[1721135513366,6.3808,156.72,156.68,7.65848667]
[1721135513751,6.3813,156.71,156.68,1.27618667]
[1721135513953,6.3813,156.71,156.67,51.7227]
[1721135514155,6.3813,156.71,156.67,45.34]
[1721135514456,6.3808,156.72,156.67,51.7224]
[1721135514660,6.3808,156.72,156.68,7.65853169]
[1721135514854,6.3804,156.73,156.69,6.3818]
[1721135515064,6.3804,156.73,156.7,1.276112]
[1721135515451,6.3804,156.73,156.7,1.27611406]
[1721135515660,6.3808,156.72,156.7,1.27611406]
[1721135515971,6.3812,156.71,156.7,1.27611406]
[1721135516177,6.3812,156.71,156.69,0.17]
[1721135516556,6.3812,156.71,156.68,0.17]
[1721135517070,12.19499118,156.75,156.69,6.3818]